[Event "Early-Titled-Tuesday-Blitz-May-07-2024"]
[Site "Chess.com"]
[Date "2024.05.07"]
[Round "2"]
[White "Irishchessman16"]
[Black "IMchanged"]
[Result "0-1"]
[WhiteElo "2542"]
[BlackElo "2753"]
[TimeControl "180+1"]
[EndTime "8:18:43 PDT"]
[Termination "IMchanged won by checkmate"]

1. e4 {[%clk 0:03:00.9]} 1... c5 {[%clk 0:02:59.3]} 2. Nf3 {[%clk 0:03:00.8]}
2... d6 {[%clk 0:02:59.9]} 3. c3 {[%clk 0:03:00.4]} 3... Nf6 {[%clk 0:02:59.5]}
4. Be2 {[%clk 0:02:59.1]} 4... Nc6 {[%clk 0:02:59.5]} 5. d4 {[%clk 0:02:58.3]}
5... e5 {[%clk 0:02:59.7]} 6. d5 {[%clk 0:02:56]} 6... Ne7 {[%clk 0:02:59.7]} 7.
Nbd2 {[%clk 0:02:50.7]} 7... Ng6 {[%clk 0:02:58.8]} 8. h4 {[%clk 0:02:46]} 8...
Nf4 {[%clk 0:02:57.9]} 9. Bf1 {[%clk 0:02:45.8]} 9... h5 {[%clk 0:02:57]} 10. g3
{[%clk 0:02:46]} 10... Ng6 {[%clk 0:02:56.6]} 11. Be2 {[%clk 0:02:45.7]} 11...
Be7 {[%clk 0:02:56.1]} 12. Ng5 {[%clk 0:02:44.5]} 12... a6 {[%clk 0:02:55.6]}
13. a4 {[%clk 0:02:43.4]} 13... Ng4 {[%clk 0:02:54.1]} 14. Nc4 {[%clk
0:02:36.5]} 14... b6 {[%clk 0:02:54.3]} 15. f3 {[%clk 0:02:28]} 15... Nf6 {[%clk
0:02:52.7]} 16. Be3 {[%clk 0:02:26.9]} 16... Rb8 {[%clk 0:02:52.2]} 17. Kf2
{[%clk 0:02:24.5]} 17... Bd7 {[%clk 0:02:48.9]} 18. b4 {[%clk 0:02:23.9]} 18...
b5 {[%clk 0:02:22.4]} 19. axb5 {[%clk 0:02:19.9]} 19... axb5 {[%clk 0:02:21.5]}
20. Na5 {[%clk 0:02:19.5]} 20... c4 {[%clk 0:02:19.6]} 21. Nc6 {[%clk
0:02:09.4]} 21... Bxc6 {[%clk 0:02:19.5]} 22. dxc6 {[%clk 0:02:10.3]} 22... Qc8
{[%clk 0:02:20.1]} 23. Ra7 {[%clk 0:01:23.9]} 23... Qxc6 {[%clk 0:02:16.7]} 24.
Qa1 {[%clk 0:01:24.5]} 24... d5 {[%clk 0:02:10.8]} 25. Rd1 {[%clk 0:01:18.2]}
25... O-O {[%clk 0:01:56.8]} 26. Ra6 {[%clk 0:01:09.2]} 26... Qb7 {[%clk
0:01:52.8]} 27. Ra7 {[%clk 0:00:36.7]} 27... Qc8 {[%clk 0:01:53.1]} 28. exd5
{[%clk 0:00:34.5]} 28... Bd6 {[%clk 0:01:53.8]} 29. Qb1 {[%clk 0:00:31.3]} 29...
e4 {[%clk 0:01:40.4]} 30. Nxe4 {[%clk 0:00:30.4]} 30... Nxe4+ {[%clk 0:01:40.9]}
31. Qxe4 {[%clk 0:00:29.7]} 31... Re8 {[%clk 0:01:41.6]} 32. Qd4 {[%clk
0:00:22.4]} 32... Qh3 {[%clk 0:01:42]} 33. Rg1 {[%clk 0:00:22.2]} 33... Re5
{[%clk 0:01:32.3]} 34. Bf1 {[%clk 0:00:20.7]} 34... Qf5 {[%clk 0:01:31.4]} 35.
Ra2 {[%clk 0:00:19.2]} 35... Rbe8 {[%clk 0:01:29.3]} 36. Re2 {[%clk 0:00:13.9]}
36... Rxd5 {[%clk 0:01:26.9]} 37. Qb6 {[%clk 0:00:13.8]} 37... Ne5 {[%clk
0:01:25.7]} 38. Re1 {[%clk 0:00:12.6]} 38... Qxf3# {[%clk 0:01:20.2]} 0-1

[Event "Early-Titled-Tuesday-Blitz-May-07-2024"]
[Site "Chess.com"]
[Date "2024.05.07"]
[Round "2"]
[White "RamonManon0g"]
[Black "martinmena"]
[Result "1-0"]
[WhiteElo "2456"]
[BlackElo "2106"]
[TimeControl "180+1"]
[EndTime "8:18:46 PDT"]
[Termination "RamonManon0g won by checkmate"]

1. e4 {[%clk 0:03:00.9]} 1... c6 {[%clk 0:02:59.3]} 2. d4 {[%clk 0:03:00.6]}
2... d5 {[%clk 0:03:00.2]} 3. e5 {[%clk 0:03:01.2]} 3... Bf5 {[%clk 0:02:58.3]}
4. Nd2 {[%clk 0:03:01.7]} 4... e6 {[%clk 0:02:55.4]} 5. Nb3 {[%clk 0:03:02.2]}
5... Ne7 {[%clk 0:02:43.2]} 6. Nf3 {[%clk 0:03:00.9]} 6... Qc7 {[%clk
0:02:31.1]} 7. Be2 {[%clk 0:02:59.8]} 7... Bg6 {[%clk 0:02:22.3]} 8. O-O {[%clk
0:02:59.4]} 8... Nf5 {[%clk 0:02:22.2]} 9. c4 {[%clk 0:02:58.1]} 9... Qd8 {[%clk
0:01:57.2]} 10. cxd5 {[%clk 0:02:57.2]} 10... Qxd5 {[%clk 0:01:50.7]} 11. Bg5
{[%clk 0:02:47.4]} 11... Be7 {[%clk 0:01:48]} 12. Bxe7 {[%clk 0:02:45.4]} 12...
Nxe7 {[%clk 0:01:46.6]} 13. Rc1 {[%clk 0:02:40.6]} 13... O-O {[%clk 0:01:38.7]}
14. Bc4 {[%clk 0:02:31.5]} 14... Qd8 {[%clk 0:01:38]} 15. Bd3 {[%clk 0:02:29.9]}
15... Bxd3 {[%clk 0:01:33.8]} 16. Qxd3 {[%clk 0:02:29.7]} 16... Na6 {[%clk
0:01:30]} 17. Ng5 {[%clk 0:02:26.1]} 17... Nf5 {[%clk 0:01:25.6]} 18. Ne4 {[%clk
0:02:24]} 18... Nb4 {[%clk 0:01:24.9]} 19. Qd2 {[%clk 0:02:17.8]} 19... Nd5
{[%clk 0:01:09.6]} 20. g4 {[%clk 0:02:14.6]} 20... Qh4 {[%clk 0:00:38.2]} 21. f3
{[%clk 0:01:48.8]} 21... Nfe3 {[%clk 0:00:19.2]} 22. Rfe1 {[%clk 0:01:49]} 22...
Nxg4 {[%clk 0:00:16.7]} 23. fxg4 {[%clk 0:01:48.7]} 23... Qxg4+ {[%clk
0:00:17.5]} 24. Ng3 {[%clk 0:01:49.1]} 24... Nf4 {[%clk 0:00:14]} 25. Re4 {[%clk
0:01:37.1]} 25... g5 {[%clk 0:00:13.6]} 26. Rf1 {[%clk 0:01:32.7]} 26... h5
{[%clk 0:00:12.1]} 27. Kh1 {[%clk 0:01:31.1]} 27... h4 {[%clk 0:00:11.3]} 28.
Rexf4 {[%clk 0:01:23]} 28... gxf4 {[%clk 0:00:08.9]} 29. Rxf4 {[%clk 0:01:23.9]}
29... Qg5 {[%clk 0:00:06.9]} 30. Ne4 {[%clk 0:01:24]} 30... Qh6 {[%clk
0:00:03.1]} 31. Rg4+ {[%clk 0:01:18.1]} 31... Qg6 {[%clk 0:00:03.6]} 32. Qh6
{[%clk 0:01:14]} 32... Qxg4 {[%clk 0:00:03.2]} 33. Nf6# {[%clk 0:01:14.2]} 1-0

[Event "Early-Titled-Tuesday-Blitz-May-07-2024"]
[Site "Chess.com"]
[Date "2024.05.07"]
[Round "2"]
[White "Alphafischer2019"]
[Black "MagnusCarlsen"]
[Result "0-1"]
[WhiteElo "2663"]
[BlackElo "3234"]
[TimeControl "180+1"]
[EndTime "8:18:47 PDT"]
[Termination "MagnusCarlsen won by resignation"]

1. Nf3 {[%clk 0:03:00.9]} 1... a5 {[%clk 0:02:51.2]} 2. g3 {[%clk 0:03:00.6]}
2... Ra6 {[%clk 0:02:48.2]} 3. Bg2 {[%clk 0:02:59.4]} 3... g6 {[%clk 0:02:47.7]}
4. d4 {[%clk 0:02:59.5]} 4... Bg7 {[%clk 0:02:48.1]} 5. c4 {[%clk 0:02:59.8]}
5... Nf6 {[%clk 0:02:45.5]} 6. Nc3 {[%clk 0:03:00.2]} 6... O-O {[%clk
0:02:46.1]} 7. O-O {[%clk 0:02:59.6]} 7... d5 {[%clk 0:02:44.7]} 8. cxd5 {[%clk
0:02:49.3]} 8... Nxd5 {[%clk 0:02:45.6]} 9. e4 {[%clk 0:02:49.6]} 9... Nxc3
{[%clk 0:02:45.5]} 10. bxc3 {[%clk 0:02:50.5]} 10... c5 {[%clk 0:02:44.9]} 11.
Ba3 {[%clk 0:02:46]} 11... cxd4 {[%clk 0:02:44.3]} 12. cxd4 {[%clk 0:02:46.9]}
12... Nc6 {[%clk 0:02:44.1]} 13. d5 {[%clk 0:02:29.4]} 13... Nb4 {[%clk
0:02:43.3]} 14. Rb1 {[%clk 0:01:53.6]} 14... Nxa2 {[%clk 0:02:40.6]} 15. Qc2
{[%clk 0:01:52.1]} 15... Nc3 {[%clk 0:02:39.8]} 16. Rb3 {[%clk 0:01:52.6]} 16...
b5 {[%clk 0:02:39.9]} 17. Rxc3 {[%clk 0:01:36.6]} 17... Bxc3 {[%clk 0:02:38.6]}
18. Qxc3 {[%clk 0:01:37.5]} 18... b4 {[%clk 0:02:38.8]} 19. Bxb4 {[%clk
0:01:37.8]} 19... axb4 {[%clk 0:02:39.7]} 20. Qxb4 {[%clk 0:01:38.3]} 20... Qd6
{[%clk 0:02:36.9]} 21. Qc3 {[%clk 0:01:36.7]} 21... Bd7 {[%clk 0:02:30.4]} 22.
Rd1 {[%clk 0:01:25.5]} 22... Rc8 {[%clk 0:02:29.8]} 23. Qe3 {[%clk 0:01:22.9]}
23... Ra3 {[%clk 0:02:17.7]} 24. Qh6 {[%clk 0:01:13.8]} 24... Qf6 {[%clk
0:02:09]} 25. e5 {[%clk 0:01:07.6]} 25... Qg7 {[%clk 0:02:08.3]} 26. Qg5 {[%clk
0:00:58.5]} 26... Qf8 {[%clk 0:02:03.5]} 27. h4 {[%clk 0:00:54.3]} 27... f6
{[%clk 0:01:57.4]} 28. Qf4 {[%clk 0:00:45.1]} 28... fxe5 {[%clk 0:01:56.8]} 29.
Qxf8+ {[%clk 0:00:46]} 29... Kxf8 {[%clk 0:01:55.6]} 30. Nxe5 {[%clk 0:00:46.9]}
30... Ba4 {[%clk 0:01:54.7]} 31. Rd4 {[%clk 0:00:46.4]} 31... Ra2 {[%clk
0:01:52.1]} 32. Rf4+ {[%clk 0:00:45.6]} 32... Kg8 {[%clk 0:01:50.6]} 33. h5
{[%clk 0:00:35]} 33... gxh5 {[%clk 0:01:48.7]} 34. Rf5 {[%clk 0:00:34.3]} 34...
Rc1+ {[%clk 0:01:37.4]} 35. Kh2 {[%clk 0:00:34.1]} 35... Bc2 {[%clk 0:01:37.7]}
36. Rg5+ {[%clk 0:00:32.4]} 36... Bg6 {[%clk 0:01:36.1]} 37. Nxg6 {[%clk
0:00:31.7]} 37... hxg6 {[%clk 0:01:37]} 38. Rxg6+ {[%clk 0:00:32.6]} 38... Kf7
{[%clk 0:01:36.6]} 39. Rg5 {[%clk 0:00:24.6]} 39... Rxf2 {[%clk 0:01:36.8]} 40.
g4 {[%clk 0:00:25.5]} 40... h4 {[%clk 0:01:25]} 41. Kh3 {[%clk 0:00:24.3]} 41...
Rc3+ {[%clk 0:01:24.3]} 42. Kxh4 {[%clk 0:00:23.6]} 42... Rxg2 {[%clk
0:01:24.3]} 43. Rf5+ {[%clk 0:00:24.3]} 43... Ke8 {[%clk 0:01:23.2]} 0-1

[Event "Early-Titled-Tuesday-Blitz-May-07-2024"]
[Site "Chess.com"]
[Date "2024.05.07"]
[Round "2"]
[White "Groetzi"]
[Black "GeorgiosSouleidis"]
[Result "0-1"]
[WhiteElo "2413"]
[BlackElo "2708"]
[TimeControl "180+1"]
[EndTime "8:18:55 PDT"]
[Termination "GeorgiosSouleidis won by resignation"]

1. e4 {[%clk 0:03:00.9]} 1... c5 {[%clk 0:03:00]} 2. Nf3 {[%clk 0:02:50]} 2...
e6 {[%clk 0:03:00.3]} 3. d4 {[%clk 0:02:43.1]} 3... cxd4 {[%clk 0:03:01.2]} 4.
Nxd4 {[%clk 0:02:43]} 4... Nf6 {[%clk 0:03:01.4]} 5. Bd3 {[%clk 0:02:40.5]} 5...
Nc6 {[%clk 0:03:00.9]} 6. Nxc6 {[%clk 0:02:38.5]} 6... bxc6 {[%clk 0:03:01.8]}
7. O-O {[%clk 0:02:38.8]} 7... d5 {[%clk 0:03:02.2]} 8. Qe2 {[%clk 0:02:38.1]}
8... Be7 {[%clk 0:03:01.9]} 9. e5 {[%clk 0:02:35.5]} 9... Nd7 {[%clk 0:03:01.6]}
10. f4 {[%clk 0:02:36.4]} 10... O-O {[%clk 0:02:57.4]} 11. c4 {[%clk 0:02:33.5]}
11... Nc5 {[%clk 0:02:51.1]} 12. Bc2 {[%clk 0:02:27.4]} 12... Ba6 {[%clk
0:02:39.8]} 13. Nd2 {[%clk 0:02:08.3]} 13... dxc4 {[%clk 0:02:36.4]} 14. Rd1
{[%clk 0:01:18.3]} 14... c3 {[%clk 0:02:20.8]} 15. Nc4 {[%clk 0:01:17.7]} 15...
cxb2 {[%clk 0:01:54.7]} 16. Bxb2 {[%clk 0:01:07.5]} 16... Qc7 {[%clk 0:01:48.4]}
17. Rac1 {[%clk 0:01:03.7]} 17... Rfd8 {[%clk 0:01:46.9]} 18. Rxd8+ {[%clk
0:00:42.3]} 18... Rxd8 {[%clk 0:01:44.4]} 19. Bb1 {[%clk 0:00:42.8]} 19... Qb8
{[%clk 0:01:26.9]} 20. Qc2 {[%clk 0:00:37.5]} 20... Nd3 {[%clk 0:00:53]} 21. Rd1
{[%clk 0:00:11.9]} 21... Bc5+ {[%clk 0:00:39.9]} 22. Kh1 {[%clk 0:00:08.2]} 0-1

[Event "Early-Titled-Tuesday-Blitz-May-07-2024"]
[Site "Chess.com"]
[Date "2024.05.07"]
[Round "2"]
[White "NowInChess"]
[Black "BeReal24"]
[Result "0-1"]
[WhiteElo "2249"]
[BlackElo "2490"]
[TimeControl "180+1"]
[EndTime "8:18:57 PDT"]
[Termination "BeReal24 won on time"]

1. e4 {[%clk 0:03:00.9]} 1... c5 {[%clk 0:02:56.4]} 2. d3 {[%clk 0:03:00.8]}
2... Nc6 {[%clk 0:02:55.3]} 3. g3 {[%clk 0:03:01.2]} 3... g6 {[%clk 0:02:55.6]}
4. Bg2 {[%clk 0:03:01.5]} 4... Bg7 {[%clk 0:02:56.2]} 5. f4 {[%clk 0:03:02.2]}
5... d6 {[%clk 0:02:54.6]} 6. Nf3 {[%clk 0:03:02.7]} 6... Nf6 {[%clk 0:02:54.8]}
7. O-O {[%clk 0:03:01.8]} 7... O-O {[%clk 0:02:55.3]} 8. Nc3 {[%clk 0:03:02.2]}
8... Rb8 {[%clk 0:02:53.2]} 9. Nh4 {[%clk 0:03:02.1]} 9... Bg4 {[%clk
0:02:51.7]} 10. Qd2 {[%clk 0:02:59.9]} 10... b5 {[%clk 0:02:50.7]} 11. e5 {[%clk
0:02:51.5]} 11... dxe5 {[%clk 0:02:22.3]} 12. Bxc6 {[%clk 0:02:50.1]} 12... exf4
{[%clk 0:02:22]} 13. Qxf4 {[%clk 0:02:47.1]} 13... b4 {[%clk 0:02:19.5]} 14. Nd5
{[%clk 0:02:24.1]} 14... Bh3 {[%clk 0:01:58.3]} 15. Nxf6+ {[%clk 0:02:10.8]}
15... exf6 {[%clk 0:01:59.2]} 16. Bg2 {[%clk 0:02:04.8]} 16... Bxg2 {[%clk
0:01:43.3]} 17. Nxg2 {[%clk 0:02:05.7]} 17... f5 {[%clk 0:01:43.5]} 18. Rb1
{[%clk 0:01:42.1]} 18... Qa5 {[%clk 0:01:40.7]} 19. Qc4 {[%clk 0:01:37.5]} 19...
Rfd8 {[%clk 0:01:39]} 20. Be3 {[%clk 0:01:29.5]} 20... Rbc8 {[%clk 0:01:34.3]}
21. Nf4 {[%clk 0:01:21.1]} 21... Qb6 {[%clk 0:01:25]} 22. a3 {[%clk 0:01:04.1]}
22... a5 {[%clk 0:01:25.1]} 23. axb4 {[%clk 0:01:03.4]} 23... axb4 {[%clk
0:01:26]} 24. b3 {[%clk 0:00:52.8]} 24... Bd4 {[%clk 0:01:20.7]} 25. Ra1 {[%clk
0:00:19.9]} 25... Bxe3+ {[%clk 0:01:18.7]} 26. Kh1 {[%clk 0:00:18.7]} 26... Qc6+
{[%clk 0:01:17.3]} 27. Ng2 {[%clk 0:00:17.9]} 27... Bd4 {[%clk 0:01:17.2]} 28.
Ra7 {[%clk 0:00:15.7]} 28... Rd7 {[%clk 0:01:16]} 29. Ra6 {[%clk 0:00:13]} 29...
Qb7 {[%clk 0:01:10.1]} 30. Re1 {[%clk 0:00:11.9]} 30... Re7 {[%clk 0:01:08.2]}
31. Rxe7 {[%clk 0:00:02.7]} 31... Qxe7 {[%clk 0:01:09.1]} 32. h3 {[%clk
0:00:01.8]} 32... Re8 {[%clk 0:01:07.6]} 0-1

[Event "Early-Titled-Tuesday-Blitz-May-07-2024"]
[Site "Chess.com"]
[Date "2024.05.07"]
[Round "2"]
[White "HeroWilczek"]
[Black "Yaacovn"]
[Result "0-1"]
[WhiteElo "2575"]
[BlackElo "2848"]
[TimeControl "180+1"]
[EndTime "8:18:58 PDT"]
[Termination "Yaacovn won by resignation"]

1. e4 {[%clk 0:03:00.9]} 1... c6 {[%clk 0:02:45]} 2. d4 {[%clk 0:02:57.6]} 2...
d5 {[%clk 0:01:48.3]} 3. Nc3 {[%clk 0:02:58.5]} 3... dxe4 {[%clk 0:01:47.4]} 4.
Nxe4 {[%clk 0:02:59.4]} 4... Nf6 {[%clk 0:01:47.7]} 5. Nxf6+ {[%clk 0:02:57.7]}
5... gxf6 {[%clk 0:01:46]} 6. Be3 {[%clk 0:02:56.6]} 6... Bf5 {[%clk 0:01:43.4]}
7. Bd3 {[%clk 0:02:55.8]} 7... Bg6 {[%clk 0:01:42]} 8. Ne2 {[%clk 0:02:54.5]}
8... Nd7 {[%clk 0:01:41.3]} 9. Qd2 {[%clk 0:02:54.1]} 9... Nb6 {[%clk
0:01:40.6]} 10. O-O-O {[%clk 0:02:53.1]} 10... Qd5 {[%clk 0:01:40.9]} 11. Kb1
{[%clk 0:02:50.1]} 11... e6 {[%clk 0:01:40.1]} 12. Nc3 {[%clk 0:02:38]} 12...
Qxg2 {[%clk 0:01:37.3]} 13. Rdg1 {[%clk 0:02:31.3]} 13... Qf3 {[%clk 0:01:36.6]}
14. Be2 {[%clk 0:02:24.5]} 14... Qf5 {[%clk 0:01:36]} 15. h4 {[%clk 0:02:15]}
15... Qa5 {[%clk 0:01:31]} 16. h5 {[%clk 0:02:10.7]} 16... Bf5 {[%clk
0:01:30.7]} 17. Bf4 {[%clk 0:01:58.3]} 17... Bb4 {[%clk 0:01:28.6]} 18. Rg3
{[%clk 0:01:56]} 18... O-O-O {[%clk 0:01:24.7]} 19. h6 {[%clk 0:01:43]} 19...
Na4 {[%clk 0:01:24.3]} 20. Bc4 {[%clk 0:01:32.2]} 20... c5 {[%clk 0:01:00.9]}
21. d5 {[%clk 0:01:09.7]} 21... Bxc3 {[%clk 0:00:59.6]} 22. bxc3 {[%clk
0:01:06.1]} 22... Qb6+ {[%clk 0:00:58.6]} 23. Bb3 {[%clk 0:01:03.8]} 23... c4
{[%clk 0:00:58.5]} 24. d6 {[%clk 0:00:52.4]} 24... cxb3 {[%clk 0:00:56.8]} 25.
axb3 {[%clk 0:00:48.6]} 25... Qxb3+ {[%clk 0:00:55.8]} 26. Kc1 {[%clk
0:00:49.3]} 26... Qb2+ {[%clk 0:00:49.7]} 27. Kd1 {[%clk 0:00:49.7]} 27... e5
{[%clk 0:00:41.7]} 28. Be3 {[%clk 0:00:43.7]} 28... Nxc3+ {[%clk 0:00:37.9]} 29.
Ke1 {[%clk 0:00:42.5]} 29... Qb1+ {[%clk 0:00:30.5]} 30. Qc1 {[%clk 0:00:42.6]}
30... Qxc1+ {[%clk 0:00:30.1]} 31. Bxc1 {[%clk 0:00:43.5]} 31... Ne4 {[%clk
0:00:30.7]} 32. Ra3 {[%clk 0:00:41.7]} 32... Rxd6 {[%clk 0:00:29.9]} 33. Rxa7
{[%clk 0:00:42.1]} 33... Rhd8 {[%clk 0:00:28.9]} 0-1

[Event "Early-Titled-Tuesday-Blitz-May-07-2024"]
[Site "Chess.com"]
[Date "2024.05.07"]
[Round "2"]
[White "legendisback1"]
[Black "PIwan"]
[Result "1-0"]
[WhiteElo "2976"]
[BlackElo "2418"]
[TimeControl "180+1"]
[EndTime "8:19:00 PDT"]
[Termination "legendisback1 won on time"]

1. e4 {[%clk 0:03:00.9]} 1... e6 {[%clk 0:03:00.9]} 2. d4 {[%clk 0:03:00.1]}
2... d5 {[%clk 0:03:01.8]} 3. Nd2 {[%clk 0:02:58.6]} 3... Be7 {[%clk 0:03:01.7]}
4. Ngf3 {[%clk 0:02:58.2]} 4... Nf6 {[%clk 0:03:00.8]} 5. Bd3 {[%clk 0:02:57.4]}
5... c5 {[%clk 0:03:00.7]} 6. dxc5 {[%clk 0:02:56.1]} 6... O-O {[%clk
0:03:00.6]} 7. O-O {[%clk 0:02:50]} 7... a5 {[%clk 0:03:00.8]} 8. c4 {[%clk
0:02:45.5]} 8... Na6 {[%clk 0:02:50]} 9. e5 {[%clk 0:02:41.3]} 9... Nd7 {[%clk
0:02:48.2]} 10. cxd5 {[%clk 0:02:41.4]} 10... exd5 {[%clk 0:02:27.6]} 11. Nb3
{[%clk 0:02:34.2]} 11... Naxc5 {[%clk 0:02:25.4]} 12. Bc2 {[%clk 0:02:33.8]}
12... a4 {[%clk 0:02:19.9]} 13. Nbd4 {[%clk 0:02:27.1]} 13... Nb6 {[%clk
0:02:19]} 14. h3 {[%clk 0:02:19.5]} 14... Be6 {[%clk 0:02:10.8]} 15. Bf4 {[%clk
0:02:19.4]} 15... Qd7 {[%clk 0:02:09.8]} 16. Rc1 {[%clk 0:02:18.7]} 16... Rac8
{[%clk 0:02:07.6]} 17. Qe2 {[%clk 0:02:18.3]} 17... Rfe8 {[%clk 0:01:45]} 18.
Rfd1 {[%clk 0:02:13.7]} 18... Bf8 {[%clk 0:01:44.6]} 19. Bb1 {[%clk 0:02:03.4]}
19... Nc4 {[%clk 0:01:13.4]} 20. b3 {[%clk 0:01:47.4]} 20... Na3 {[%clk
0:01:07.7]} 21. Bxh7+ {[%clk 0:01:22]} 21... Kxh7 {[%clk 0:01:00.4]} 22. Ng5+
{[%clk 0:01:22.5]} 22... Kg8 {[%clk 0:00:58.2]} 23. Qh5 {[%clk 0:01:22.2]} 23...
Bf5 {[%clk 0:00:58.1]} 24. e6 {[%clk 0:01:22.7]} 24... Nxe6 {[%clk 0:00:39.8]}
25. Nxf5 {[%clk 0:01:22.6]} 25... Nxg5 {[%clk 0:00:23.6]} 26. Qxg5 {[%clk
0:01:22.8]} 26... Rxc1 {[%clk 0:00:23.7]} 27. Rxc1 {[%clk 0:01:23.7]} 27... Re6
{[%clk 0:00:17]} 28. Rc7 {[%clk 0:01:18.6]} 28... Qe8 {[%clk 0:00:10.6]} 29. Kh2
{[%clk 0:01:18.1]} 29... Rg6 {[%clk 0:00:10.1]} 30. Qh5 {[%clk 0:01:15.4]} 30...
Qe4 {[%clk 0:00:09.5]} 31. Bg3 {[%clk 0:01:15.5]} 31... Qe6 {[%clk 0:00:02.8]}
32. Rxb7 {[%clk 0:01:13]} 32... axb3 {[%clk 0:00:03.2]} 33. axb3 {[%clk
0:01:13.9]} 33... Nc2 {[%clk 0:00:03.3]} 34. Rb8 {[%clk 0:01:12.6]} 1-0

[Event "Early-Titled-Tuesday-Blitz-May-07-2024"]
[Site "Chess.com"]
[Date "2024.05.07"]
[Round "2"]
[White "JG-17"]
[Black "Javylavilla"]
[Result "1-0"]
[WhiteElo "2528"]
[BlackElo "2315"]
[TimeControl "180+1"]
[EndTime "8:19:00 PDT"]
[Termination "JG-17 won by resignation"]

1. d4 {[%clk 0:03:00.9]} 1... Nf6 {[%clk 0:02:59.2]} 2. c4 {[%clk 0:03:00.6]}
2... e6 {[%clk 0:02:59.6]} 3. Nc3 {[%clk 0:03:01.2]} 3... Bb4 {[%clk 0:02:59.6]}
4. Nf3 {[%clk 0:03:00.9]} 4... O-O {[%clk 0:02:48.4]} 5. e3 {[%clk 0:03:01.2]}
5... c5 {[%clk 0:02:47.5]} 6. Bd3 {[%clk 0:03:00.1]} 6... d5 {[%clk 0:02:46.4]}
7. O-O {[%clk 0:02:57.7]} 7... cxd4 {[%clk 0:02:42.5]} 8. exd4 {[%clk
0:02:53.7]} 8... dxc4 {[%clk 0:02:42.3]} 9. Bxc4 {[%clk 0:02:54.6]} 9... Nc6
{[%clk 0:02:38]} 10. Bg5 {[%clk 0:02:54.3]} 10... h6 {[%clk 0:02:37]} 11. Bh4
{[%clk 0:02:52.5]} 11... Bxc3 {[%clk 0:02:31.4]} 12. bxc3 {[%clk 0:02:52]} 12...
b6 {[%clk 0:02:31.2]} 13. Bb3 {[%clk 0:02:21.2]} 13... Bb7 {[%clk 0:02:30.1]}
14. Re1 {[%clk 0:02:18]} 14... Rc8 {[%clk 0:02:29.1]} 15. Qd3 {[%clk 0:02:17.4]}
15... Ne7 {[%clk 0:02:06.2]} 16. Bxf6 {[%clk 0:02:13.3]} 16... gxf6 {[%clk
0:02:07.1]} 17. Nh4 {[%clk 0:02:07.4]} 17... Qc7 {[%clk 0:01:59.3]} 18. Qe3
{[%clk 0:01:57.1]} 18... Kg7 {[%clk 0:01:57.1]} 19. Rac1 {[%clk 0:01:48.3]}
19... Qc6 {[%clk 0:01:53]} 20. Qg3+ {[%clk 0:01:47.4]} 20... Ng6 {[%clk
0:01:52.4]} 21. Nxg6 {[%clk 0:01:46.4]} 21... fxg6 {[%clk 0:01:53.3]} 22. Rxe6
{[%clk 0:01:44.4]} 22... Qd7 {[%clk 0:01:48.6]} 23. Rce1 {[%clk 0:01:43.6]}
23... Rfe8 {[%clk 0:01:47.5]} 24. h4 {[%clk 0:01:28.3]} 24... Rxe6 {[%clk
0:01:34.2]} 25. Rxe6 {[%clk 0:01:25.1]} 25... g5 {[%clk 0:01:18.1]} 26. Qe3
{[%clk 0:01:19.6]} 26... Rc7 {[%clk 0:01:15.8]} 27. Re8 {[%clk 0:01:18.8]} 27...
Qg4 {[%clk 0:01:10.6]} 28. Re7+ {[%clk 0:01:01]} 28... Kf8 {[%clk 0:01:00]} 29.
Re8+ {[%clk 0:00:56.3]} 29... Kg7 {[%clk 0:00:58.9]} 30. f3 {[%clk 0:00:38.4]}
30... Qf4 {[%clk 0:00:58.6]} 31. Re7+ {[%clk 0:00:34.9]} 31... Rxe7 {[%clk
0:00:47.8]} 32. Qxe7+ {[%clk 0:00:35.8]} 32... Kg6 {[%clk 0:00:46.1]} 33. Qf7+
{[%clk 0:00:28.2]} 33... Kf5 {[%clk 0:00:46.2]} 34. Bc2+ {[%clk 0:00:23.9]} 1-0

[Event "Early-Titled-Tuesday-Blitz-May-07-2024"]
[Site "Chess.com"]
[Date "2024.05.07"]
[Round "2"]
[White "FLYD"]
[Black "MaxLeto"]
[Result "1-0"]
[WhiteElo "2012"]
[BlackElo "2423"]
[TimeControl "180+1"]
[EndTime "8:19:00 PDT"]
[Termination "FLYD won by checkmate"]

1. e4 {[%clk 0:03:00.9]} 1... a6 {[%clk 0:03:00.9]} 2. d4 {[%clk 0:03:00.5]}
2... b6 {[%clk 0:03:01.8]} 3. Nf3 {[%clk 0:03:00.5]} 3... c6 {[%clk 0:03:02.7]}
4. Nc3 {[%clk 0:03:00.7]} 4... d6 {[%clk 0:03:03.6]} 5. Be3 {[%clk 0:02:53.8]}
5... e6 {[%clk 0:03:04.5]} 6. a4 {[%clk 0:02:51.5]} 6... f6 {[%clk 0:03:05.4]}
7. Bd3 {[%clk 0:02:51.1]} 7... g6 {[%clk 0:03:06.3]} 8. h4 {[%clk 0:02:50.9]}
8... h6 {[%clk 0:03:07.2]} 9. Qd2 {[%clk 0:02:49.7]} 9... Ne7 {[%clk 0:03:06.5]}
10. O-O-O {[%clk 0:02:40.6]} 10... Bg7 {[%clk 0:03:06.2]} 11. d5 {[%clk
0:02:38.9]} 11... cxd5 {[%clk 0:03:01.5]} 12. exd5 {[%clk 0:02:39.8]} 12... e5
{[%clk 0:03:01.8]} 13. Ne4 {[%clk 0:02:34.5]} 13... f5 {[%clk 0:02:59.4]} 14.
Ng3 {[%clk 0:02:20.9]} 14... e4 {[%clk 0:01:49.8]} 15. Bxe4 {[%clk 0:02:12.3]}
15... fxe4 {[%clk 0:01:50.7]} 16. Nxe4 {[%clk 0:02:13.1]} 16... Bf5 {[%clk
0:01:38.5]} 17. Bd4 {[%clk 0:02:08]} 17... O-O {[%clk 0:01:28.5]} 18. Bxg7
{[%clk 0:02:05.4]} 18... Kxg7 {[%clk 0:01:29.4]} 19. Qd4+ {[%clk 0:02:01.5]}
19... Kf7 {[%clk 0:01:16.3]} 20. Rhe1 {[%clk 0:02:01.2]} 20... Bxe4 {[%clk
0:01:07.1]} 21. Qxe4 {[%clk 0:02:00.1]} 21... Ng8 {[%clk 0:00:40.9]} 22. h5
{[%clk 0:01:50.9]} 22... gxh5 {[%clk 0:00:23.3]} 23. Qh7+ {[%clk 0:01:43.4]}
23... Kf6 {[%clk 0:00:11.6]} 24. Re6# {[%clk 0:00:31.1]} 1-0